[Event "XVII Orsha-2019 Open"]
[Site "Orsha"]
[Date "2019.01.23"]
[Round "8"]
[White "Tihonov, Jurij"]
[Black "Zabotin, Alexander"]
[Result "0-1"]
[ECO "A27"]
[WhiteElo "2399"]
[BlackElo "2484"]
[Annotator "ChessBase"]
[PlyCount "92"]
[EventDate "2019.01.18"]
[EventType "swiss"]
[EventCountry "BLR"]
[SourceTitle "playchess.com"]
[Source "ChessBase"]
[SourceQuality "1"]
[TimeControl "5400+30"]

1. c4 {[%emt 0:00:00]} e5 {[%emt 0:02:49]} 2. Nc3 {[%emt 0:00:01]} Nc6 {[%emt 0:00:03]} 3. Nf3 {[%emt 0:05:04]} f5 {[%emt 0:01:35]} 4. d3 {[%emt 0:07:07]} Nf6 {[%emt 0:00:20]} 5. g3 {[%emt 0:00:04]} Bc5 {[%emt 0:07:45]} 6. Bg2 {[%emt 0:00:17]} d6 {[%emt 0:00:03]} 7. O-O {[%emt 0:00:21]} O-O {[%emt 0:00:03]} 8. e3 {[%emt 0:12:49]} Bb6 {[%emt 0:00:25]} 9. Na4 {[%emt 0:02:10]} Qe8 {[%emt 0:09:27]} 10. b3 {[%emt 0:11:19]} Bd7 {[%emt 0:13:34]} 11. Nxb6 {[%emt 0:03:09]} axb6 {[%emt 0:00:05]} 12. Ne1 {[%emt 0:00:35]} e4 {[%emt 0:01:33]} 13. Bb2 {[%emt 0:01:01]} Ne5 {[%emt 0:00:04]} 14. Qe2 {[%emt 0:09:06]} Qe7 {[%emt 0:08:51]} 15. a4 {[%emt 0:06:10]} Bc6 {[%emt 0:10:01]} 16. d4 {[%emt 0:02:14]} Ng6 {[%emt 0:00:03]} 17. Nc2 {[%emt 0:00:26]} Rf7 {[%emt 0:04:15]} 18. Bc3 {[%emt 0:05:22]} Bd7 {[%emt 0:09:02]} 19. a5 {[%emt 0:01:49]} bxa5 {[%emt 0:00:15]} 20. Bxa5 {[%emt 0:00:30]} Rc8 {[%emt 0:00:35]} 21. Bc3 {[%emt 0:02:48]} h5 {[%emt 0:00:04]} 22. Ra7 {[%emt 0:00:06]} Rb8 {[%emt 0:00:07]} 23. Ba5 {[%emt 0:06:16]} Qd8 {[%emt 0:01:09]} 24. Ra1 {[%emt 0:06:58]} h4 {[%emt 0:00:17]} 25. Bc3 {[%emt 0:00:24]} Rf8 {[%emt 0:01:25]} 26. Be1 {[%emt 0:03:12]} Qe7 {[%emt 0:02:38]} 27. Ba5 {[%emt 0:02:50]} b6 {[%emt 0:09:06]} 28. Bc3 {[%emt 0:01:05]} Rbc8 {[%emt 0:00:31]} 29. d5 {[%emt 0:02:49]} Ne5 {[%emt 0:00:19]} 30. Nd4 {[%emt 0:00:25]} g5 {[%emt 0:03:28]} 31. Rb7 {[%emt 0:02:14]} g4 {[%emt 0:00:31]} 32. Raa7 {[%emt 0:02:33]} Nf3+ {[%emt 0:00:09]} 33. Nxf3 {[%emt 0:00:04]} exf3 {[%emt 0:00:48]} 34. Bxf3 {[%emt 0:00:01]} gxf3 {[%emt 0:00:09]} 35. Qxf3 {[%emt 0:00:04]} Ne4 {[%emt 0:01:44]} 36. Bd4 {[%emt 0:00:15]} Be8 {[%emt 0:01:03]} 37. Qf4 {[%emt 0:00:30]} Bh5 {[%emt 0:05:35]} 38. Qh6 {[%emt 0:04:01]} Qh7 {[%emt 0:00:24]} 39. Qxh7+ {[%emt 0:02:11]} Kxh7 {[%emt 0:00:04]} 40. Bxb6 {[%emt 0:00:54]} Rf7 {[%emt 0:03:04]} 41. Rxc7 {[%emt 0:00:29]} Rfxc7 {[%emt 0:00:07]} 42. Rxc7+ {[%emt 0:00:26]} Rxc7 {[%emt 0:00:03]} 43. Bxc7 {[%emt 0:00:06]} h3 {[%emt 0:00:10]} 44. b4 {[%emt 0:00:52]} Nd2 {[%emt 0:00:55]} 45. Bxd6 {[%emt 0:00:38]} Nf3+ {[%emt 0:00:14]} 46. Kh1 {[%emt 0:00:37]} f4 {[%emt 0:00:26]} 0-1

[Event "XVII Orsha-2019 Open"]
[Site "Orsha"]
[Date "2019.01.23"]
[Round "8"]
[White "Vorobjov, Pavel"]
[Black "Zarubitski, Viachaslau"]
[Result "1/2-1/2"]
[ECO "E46"]
[WhiteElo "2296"]
[BlackElo "2415"]
[Annotator "ChessBase"]
[PlyCount "52"]
[EventDate "2019.01.18"]
[EventType "swiss"]
[EventCountry "BLR"]
[SourceTitle "playchess.com"]
[Source "ChessBase"]
[SourceQuality "1"]
[TimeControl "5400+30"]

1. d4 {[%emt 0:00:00]} Nf6 {[%emt 0:00:00]} 2. c4 {[%emt 0:00:05]} e6 {[%emt 0:00:00]} 3. Nc3 {[%emt 0:00:34]} Bb4 {[%emt 0:00:00]} 4. e3 {[%emt 0:00:36]} O-O {[%emt 0:00:05]} 5. Nge2 {[%emt 0:00:35]} Re8 {[%emt 0:00:12]} 6. a3 {[%emt 0:01:17]} Bf8 {[%emt 0:00:07]} 7. e4 {[%emt 0:04:41]} d5 {[%emt 0:00:57]} 8. e5 {[%emt 0:07:41]} Nfd7 {[%emt 0:00:20]} 9. c5 {[%emt 0:04:54]} f6 {[%emt 0:05:07]} 10. f4 {[%emt 0:01:04]} a5 {[%emt 0:00:16]} 11. Be3 {[%emt 0:01:01]} Nc6 {[%emt 0:02:28]} 12. Qa4 {[%emt 0:04:00]} Ne7 {[%emt 0:05:43]} 13. Bf2 {[%emt 0:08:31]} b6 {[%emt 0:07:24]} 14. b4 {[%emt 0:10:09]} bxc5 {[%emt 0:03:44]} 15. bxc5 {[%emt 0:00:40]} Ba6 {[%emt 0:01:14]} 16. Ng3 {[%emt 0:04:37]} Bxf1 {[%emt 0:00:40]} 17. Nxf1 {[%emt 0:08:09]} fxe5 {[%emt 0:03:35]} 18. fxe5 {[%emt 0:00:44]} Nf5 {[%emt 0:00:16]} 19. Nd2 {[%emt 0:04:30]} Qc8 {[%emt 0:09:51]} 20. O-O {[%emt 0:03:41]} c6 {[%emt 0:00:13]} 21. Qd1 {[%emt 0:05:50]} Rb8 {[%emt 0:00:55]} 22. Qe2 {[%emt 0:00:22]} Be7 {[%emt 0:03:23]} 23. Rab1 {[%emt 0:01:49]} Bg5 {[%emt 0:00:42]} 24. Nf3 {[%emt 0:00:47]} Bd8 {[%emt 0:01:33]} 25. Rxb8 {[%emt 0:01:10]} Nxb8 {[%emt 0:00:43]} 26. Rb1 {[%emt 0:00:19]} Bc7 {[%emt 0:01:27]} 1/2-1/2

[Event "XVII Orsha-2019 Open"]
[Site "Orsha"]
[Date "2019.01.23"]
[Round "8"]
[White "Cherepov, Alexej"]
[Black "Silich, Yahor"]
[Result "1-0"]
[ECO "E91"]
[WhiteElo "2226"]
[BlackElo "2116"]
[Annotator "NA"]
[PlyCount "53"]
[EventDate "2019.01.18"]
[EventType "swiss"]
[EventCountry "BLR"]
[SourceTitle "playchess.com"]
[Source "ChessBase"]
[SourceQuality "1"]
[TimeControl "5400+30"]

1. d4 {[%emt 0:00:00]} Nf6 {[%emt 0:00:00]} 2. c4 {[%emt 0:00:00]} d6 {[%emt 0:00:05]} 3. Nf3 {[%emt 0:00:00]} g6 {[%emt 0:00:27]} 4. Nc3 {[%emt 0:00:15]} Bg7 {[%emt 0:00:13]} 5. e4 {[%emt 0:00:22]} O-O {[%emt 0:00:53]} 6. Be2 {[%emt 0:00:05]} Nbd7 {[%emt 0:00:31]} 7. O-O {[%emt 0:01:18]} e5 {[%emt 0:00:34]} 8. Qc2 {[%emt 0:01:21]} c6 {[%emt 0:01:33]} 9. Rd1 {[%emt 0:01:38]} Qe7 {[%emt 0:01:31]} 10. d5 {[%emt 0:01:18]} c5 {[%emt 0:00:12]} 11. Bg5 {[%emt 0:00:44]} h6 {[%emt 0:02:50]} 12. Bd2 {[%emt 0:01:50]} Ne8 {[%emt 0:05:00]} 13. g3 {[%emt 0:05:02]} f5 $16 {[%emt 0:12:36] LiveBook: 9 Games} ({Black should play} 13... Nc7) 14. Nh4 {[%emt 0:05:14]} Qf7 {[%emt 0:03:51]} 15. exf5 {[%emt 0:01:40]} gxf5 {[%emt 0:00:04]} 16. f4 {[%emt 0:00:05]} e4 {[%emt 0:00:31]} 17. g4 {[%emt 0:03:08]} fxg4 {[%emt 0:23:21]} 18. Bxg4 {[%emt 0:09:04]} Ndf6 {[%emt 0:03:18]} 19. Bxc8 {[%emt 0:03:30]} Rxc8 {[%emt 0:00:01]} 20. Nxe4 {[%emt 0:01:04]} Ng4 {[%emt 0:01:32]} 21. Ng3 {[%emt 0:04:42]} Nc7 {[%emt 0:15:07]} 22. Nhf5 {[%emt 0:02:31]} Rce8 {[%emt 0:14:02]} 23. h3 {[%emt 0:08:04]} Nf6 {[%emt 0:03:18]} 24. Nxd6 {[%emt 0:03:24]} Qd7 {[%emt 0:00:07]} 25. Nxe8 {[%emt 0:02:08]} Qxh3 {[%emt 0:00:20]} 26. Nxf6+ {[%emt 0:00:10]} Rxf6 {[%emt 0:00:24]} 27. Be1 {[%emt 0:01:15]} 1-0

[Event "XVII Orsha-2019 Open"]
[Site "Orsha"]
[Date "2019.01.23"]
[Round "8"]
[White "Egorenkov, Igor"]
[Black "Strybuk, Artsiom I"]
[Result "1/2-1/2"]
[ECO "A22"]
[WhiteElo "2213"]
[BlackElo "2110"]
[Annotator "NA"]
[PlyCount "52"]
[EventDate "2019.01.18"]
[EventType "swiss"]
[EventCountry "BLR"]
[SourceTitle "playchess.com"]
[Source "ChessBase"]
[SourceQuality "1"]
[TimeControl "5400+30"]

1. c4 {[%emt 0:06:29]} e5 {[%emt 0:00:02]} 2. Nc3 {[%emt 0:00:04]} Nf6 {[%emt 0:00:17]} 3. g3 {[%emt 0:00:25]} Bb4 {[%emt 0:00:45]} 4. Bg2 {[%emt 0:00:55]} O-O {[%emt 0:00:34]} 5. e4 {[%emt 0:01:11]} d6 {[%emt 0:09:13]} 6. Nge2 {[%emt 0:03:48]} Nc6 {[%emt 0:01:54]} 7. O-O {[%emt 0:05:03]} h6 {[%emt 0:07:59] LiveBook: 5 Games A25: English Opening vs King's Indian with ...Nc6 but without early d3} (7... Bc5 8. d3 a6 9. h3 h6 10. Kh2 b5 11. Nd5 bxc4 12. dxc4 Nxd5 13. cxd5 Nd4 14. Be3 Nxe2 15. Qxe2 {0-1 (44) Matlakov,M (2694)-Wojtaszek,R (2749) Doha 2016}) 8. d3 {[%emt 0:04:11]} Bxc3 {[%emt 0:10:15]} 9. Nxc3 {[%emt 0:02:38]} Nd4 {[%emt 0:00:40]} 10. h3 $146 {[%emt 0:01:57]} ({Predecessor:} 10. Be3 Ne6 11. f4 exf4 12. gxf4 {0-1 (48) Schaaf,A-Schmitt,H Griesheim 1999}) 10... c6 {[%emt 0:08:28]} 11. Kh2 {[%emt 0:01:13]} b5 12. f4 {[%emt 0:07:18]} Bb7 {[%emt 0:17:12]} 13. Be3 {[%emt 0:05:46]} bxc4 {[%emt 0:01:35]} 14. dxc4 {[%emt 0:00:06]} c5 {[%emt 0:00:06]} 15. f5 {[%emt 0:09:09]} Qb6 {[%emt 0:07:26]} 16. Rf2 {[%emt 0:11:56]} Qb4 {[%emt 0:05:53]} 17. Qd3 {[%emt 0:00:34]} a5 {[%emt 0:01:35]} 18. a4 {[%emt 0:08:24]} Ba6 {[%emt 0:03:37]} 19. Nb5 {[%emt 0:00:11]} Bxb5 {[%emt 0:02:21]} 20. axb5 {[%emt 0:00:06]} Qb3 {[%emt 0:06:48]} 21. Qxb3 {[%emt 0:02:12]} Nxb3 {[%emt 0:00:01]} 22. Ra3 {[%emt 0:00:34]} a4 {[%emt 0:02:57]} 23. g4 {[%emt 0:04:28]} g5 {[%emt 0:01:21]} 24. Kg3 {[%emt 0:10:22]} Nd7 $16 {[%emt 0:04:11]} 25. h4 {[%emt 0:06:07]} f6 26. hxg5 fxg5 1/2-1/2

[Event "XVII Orsha-2019 Open"]
[Site "Orsha"]
[Date "2019.01.23"]
[Round "8"]
[White "Runets, Ivan"]
[Black "Afonasieva, Anna"]
[Result "0-1"]
[ECO "D70"]
[WhiteElo "2118"]
[BlackElo "2265"]
[Annotator "NA"]
[PlyCount "86"]
[EventDate "2019.01.18"]
[EventType "swiss"]
[EventCountry "BLR"]
[SourceTitle "playchess.com"]
[Source "ChessBase"]
[SourceQuality "1"]
[TimeControl "5400+30"]

1. d4 {[%emt 0:00:56]} d5 {[%emt 0:00:00]} 2. Nf3 {[%emt 0:00:22]} Nf6 {[%emt 0:00:00]} 3. c4 {[%emt 0:00:16]} c6 {[%emt 0:01:32]} 4. Nbd2 {[%emt 0:06:02]} Bf5 {[%emt 0:01:41]} 5. e3 {[%emt 0:04:49]} e6 {[%emt 0:02:10]} 6. Be2 {[%emt 0:05:34]} Nbd7 {[%emt 0:00:11]} 7. O-O {[%emt 0:01:40] D12: Slav Defence: 3 Nf3 Nf6 4 e3 Bf5} Bd6 {[%emt 0:01:09]} 8. b3 {[%emt 0:12:12] LiveBook: 6 Games} h6 {[%emt 0:01:01]} 9. Bb2 {[%emt 0:04:40]} O-O {[%emt 0:01:27]} 10. Ne5 {[%emt 0:03:16]} (10. a3 Ne4 11. b4 Qe7 12. Nb3 dxc4 13. Bxc4 Nb6 14. Bd3 Na4 15. Qc2 Ng5 16. Nxg5 Bxd3 17. Qxd3 hxg5 18. Bc1 e5 19. Qc2 Nb6 20. dxe5 Bxe5 21. Bb2 Bxb2 22. Qxb2 Rad8 {½-½ (22) Granda Zuniga,J (2640)-Postny,E (2648) Nancy 2010}) 10... Qe7 {[%emt 0:02:29]} 11. Ndf3 {[%emt 0:04:19]} Ne4 {[%emt 0:09:35]} 12. Nxd7 {[%emt 0:07:09]} Qxd7 {[%emt 0:00:05]} 13. Bd3 $146 {[%emt 0:02:31]} Bg4 {[%emt 0:03:26]} 14. Ne5 {[%emt 0:07:15]} Bxe5 {[%emt 0:01:58]} 15. Qxg4 {[%emt 0:00:07]} f5 {[%emt 0:00:31]} 16. Qe2 {[%emt 0:00:07]} Bc7 {[%emt 0:03:35]} 17. f4 {[%emt 0:00:37]} Nf6 {[%emt 0:05:46]} 18. c5 {[%emt 0:01:06]} g5 {[%emt 0:03:57]} 19. Bc3 {[%emt 0:05:59]} Qg7 {[%emt 0:01:41]} 20. Kh1 {[%emt 0:07:27]} Kf7 {[%emt 0:01:24]} 21. b4 {[%emt 0:01:25]} Rg8 {[%emt 0:09:12]} 22. a4 {[%emt 0:05:02]} a6 {[%emt 0:06:57]} 23. Rab1 {[%emt 0:07:22]} Ke7 {[%emt 0:02:45]} 24. Be1 {[%emt 0:02:10]} Kd7 {[%emt 0:11:14]} 25. b5 {[%emt 0:00:49]} axb5 $1 {[%emt 0:03:02]} 26. axb5 {[%emt 0:01:39]} gxf4 {[%emt 0:00:22]} 27. bxc6+ {[%emt 0:03:03]} bxc6 {[%emt 0:00:09]} 28. exf4 {[%emt 0:00:35]} Ng4 {[%emt 0:00:31]} 29. Rb7 {[%emt 0:02:44]} Ne3 {[%emt 0:13:47]} 30. Rg1 {[%emt 0:02:25]} Qxd4 {[%emt 0:00:20]} 31. Bf2 {[%emt 0:00:35]} Ra3 {[%emt 0:00:30]} 32. Bxe3 {[%emt 0:00:12]} Qxd3 {[%emt 0:00:06]} 33. Qh5 {[%emt 0:00:10]} Rg7 {[%emt 0:00:31]} 34. Qxh6 {[%emt 0:00:13]} Qc3 {[%emt 0:00:13] [#]} 35. Rxc7+ $4 {[%emt 0:00:49]} (35. Bd2 $1 $18 {[%mdl 512] was the only winning move.} Qd4 (35... Qxd2 36. Qxg7+) 36. Re1) 35... Kxc7 {[%emt 0:00:25]} 36. Bd2 {[%emt 0:00:53]} Qd4 {[%emt 0:01:08]} 37. Qxe6 {[%emt 0:00:47]} Ra1 {[%emt 0:02:14]} 38. Qd6+ {[%emt 0:01:05]} Kb7 {[%emt 0:00:12]} 39. Be1 {[%emt 0:00:37]} Qe4 {[%emt 0:01:57]} 40. Bg3 {[%emt 0:00:30]} Rxg1+ {[%emt 0:00:50]} 41. Kxg1 {[%emt 0:00:02]} Qe3+ {[%emt 0:00:13]} 42. Kf1 {[%emt 0:00:28]} Re7 {[%emt 0:00:07]} 43. Qd8 {[%emt 0:01:00]} Qc1+ {[%emt 0:00:12]} 0-1

[Event "XVII Orsha-2019 Open"]
[Site "Orsha"]
[Date "2019.01.23"]
[Round "8"]
[White "Papunidi, Matvey"]
[Black "Siniauski, Artsiom"]
[Result "1/2-1/2"]
[ECO "E14"]
[WhiteElo "2113"]
[BlackElo "2182"]
[Annotator "NA"]
[PlyCount "64"]
[EventDate "2019.01.18"]
[EventType "swiss"]
[EventCountry "BLR"]
[SourceTitle "playchess.com"]
[Source "ChessBase"]
[SourceQuality "1"]
[TimeControl "5400+30"]

1. d4 {[%emt 0:00:07]} Nf6 {[%emt 0:00:00]} 2. Nf3 {[%emt 0:00:30]} e6 {[%emt 0:00:11]} 3. c4 {[%emt 0:04:56]} b6 {[%emt 0:00:08]} 4. e3 {[%emt 0:09:44]} Bb7 {[%emt 0:01:08]} 5. Nc3 {[%emt 0:02:44]} Bb4 {[%emt 0:00:52]} 6. Bd2 {[%emt 0:07:20]} O-O {[%emt 0:02:08]} 7. Ne4 {[%emt 0:11:40] E21: Nimzo-Indian: 4 Nf3} (7. Bd3 d5 8. cxd5 exd5 9. Rc1 Be7 10. O-O c5 11. Ne5 Nc6 12. Be1 a6 13. f3 cxd4 14. Nxc6 Bxc6 15. exd4 Bb7 16. Bh4 Nh5 17. Bxe7 Qxe7 {1-0 (59) Yu,Y (2759)-Wang,H (2710) Tianjin 2018}) 7... Bxd2+ $146 {[%emt 0:05:11]} ({Predecessor:} 7... Be7 8. Ng3 c5 9. Bd3 d5 10. cxd5 exd5 11. Qc2 c4 12. Be2 Re8 13. h4 Nbd7 14. h5 Ne4 15. Nxe4 dxe4 {1-0 (53) Fernandez,E-Bademian Orchanian,J (2235) Las Piedras 1977}) 8. Nexd2 {[%emt 0:00:08]} c5 {[%emt 0:00:08]} 9. dxc5 {[%emt 0:06:09]} bxc5 {[%emt 0:00:15]} 10. Be2 {[%emt 0:01:40]} Qb6 {[%emt 0:00:29]} 11. O-O {[%emt 0:02:01]} Nc6 {[%emt 0:00:23]} 12. Qc2 {[%emt 0:06:19]} Rab8 {[%emt 0:03:41]} 13. b3 {[%emt 0:03:44]} Rfd8 {[%emt 0:00:57]} 14. Rfd1 {[%emt 0:01:47]} a5 {[%emt 0:02:07]} 15. h3 {[%emt 0:04:10]} d6 {[%emt 0:03:30]} 16. g4 {[%emt 0:08:04]} Nb4 {[%emt 0:01:38]} 17. Qc3 {[%emt 0:01:28]} d5 {[%emt 0:04:05]} 18. a3 {[%emt 0:01:33]} Na6 {[%emt 0:00:56]} 19. cxd5 {[%emt 0:02:23]} exd5 {[%emt 0:00:48]} 20. g5 {[%emt 0:05:23]} d4 {[%emt 0:10:04]} 21. Nc4 {[%emt 0:03:49]} Nd5 {[%emt 0:00:23]} 22. Qxa5 {[%emt 0:05:47]} Qe6 {[%emt 0:00:55]} 23. Rac1 {[%emt 0:02:09]} Re8 {[%emt 0:03:41]} 24. Nce5 {[%emt 0:02:46]} Nc3 {[%emt 0:21:35]} 25. Rxc3 {[%emt 0:05:30]} Bxf3 {[%emt 0:00:49]} 26. Nxf3 {[%emt 0:00:30]} dxc3 {[%emt 0:00:19]} 27. Qxa6 {[%emt 0:00:07]} Qxh3 {[%emt 0:00:37]} 28. Qc4 {[%emt 0:00:29]} h6 {[%emt 0:01:02]} 29. g6 {[%emt 0:00:21]} Re6 $18 {[%emt 0:00:08]} (29... Qe6 $142 30. gxf7+ Qxf7) 30. gxf7+ {[%emt 0:00:45]} Kh8 {[%emt 0:02:15]} 31. Nh4 {[%emt 0:00:40]} c2 {[%emt 0:00:04]} 32. Rc1 {[%emt 0:00:18]} Rf6 {[%emt 0:01:54]} 1/2-1/2

[Event "XVII Orsha-2019 Open"]
[Site "Orsha"]
[Date "2019.01.23"]
[Round "8.11"]
[White "Pogosian, Georgy"]
[Black "Galkin, Gleb"]
[Result "0-1"]
[ECO "D37"]
[WhiteElo "2090"]
[BlackElo "2156"]
[PlyCount "40"]
[EventDate "2019.01.18"]
[EventType "swiss"]
[EventCountry "BLR"]
[TimeControl "5400+30"]

1. d4 d5 2. Nf3 Nf6 3. c4 e6 4. Nc3 Be7 5. Bf4 O-O 6. e3 c5 7. cxd5 Nxd5 8. Nxd5 Qxd5 9. dxc5 Qxc5 10. Bd3 Qa5+ 11. Ke2 Nc6 12. a3 Bf6 13. Qc2 h6 14. h4 Qb6 15. Rab1 e5 16. Bg5 Bg4 17. Bxf6 gxf6 18. Bf5 Bxf5 19. Qxf5 Qa6+ 20. Qd3 e4 0-1

[Event "XVII Orsha-2019 Open"]
[Site "Orsha"]
[Date "2019.01.23"]
[Round "8.12"]
[White "Parshin, Maxim"]
[Black "Vashchilov, Sergey"]
[Result "0-1"]
[ECO "E14"]
[WhiteElo "1956"]
[BlackElo "2134"]
[PlyCount "68"]
[EventDate "2019.01.18"]
[EventType "swiss"]
[EventCountry "BLR"]
[TimeControl "5400+30"]

1. d4 e6 2. Nf3 c5 3. e3 Nf6 4. Bd3 b6 5. O-O Bb7 6. Nbd2 d6 7. b3 Be7 8. Bb2 O-O 9. c4 Nbd7 10. Rc1 Rc8 11. dxc5 bxc5 12. Nb1 Qc7 13. Nc3 Qb8 14. Qe2 a6 15. Rfd1 Bd8 16. Bb1 Bc7 17. h3 Rfe8 18. Qd3 Qa8 19. Qe2 Nf8 20. Rd2 Ng6 21. Ne1 Nh4 22. f4 d5 23. Na4 d4 24. Nxc5 Bxg2 25. Bxd4 Ba5 26. Bxf6 Bxd2 27. Bxh7+ Kxh7 28. Qh5+ Kg8 29. Qxh4 Rxc5 30. Rc2 Bxe3+ 31. Kh2 Be4 32. Nd3 Bxd3 33. Rg2 Bg6 34. Be5 Qe4 0-1

[Event "XVII Orsha-2019 Open"]
[Site "Orsha"]
[Date "2019.01.23"]
[Round "8.13"]
[White "Paniagua Chnelik, Sebastian"]
[Black "Ghevondyan, Arman"]
[Result "0-1"]
[ECO "D85"]
[WhiteElo "2188"]
[BlackElo "1679"]
[PlyCount "113"]
[EventDate "2019.01.18"]
[EventType "swiss"]
[EventCountry "BLR"]
[TimeControl "5400+30"]

1. d4 Nf6 2. c4 g6 3. Nc3 d5 4. cxd5 Nxd5 5. Nb1 Bg7 6. e4 Nb6 7. Nf3 Bg4 8. Nc3 Bxf3 9. Qxf3 Qxd4 10. Nb5 Qd7 11. Bf4 e5 12. Rd1 Qc8 13. Qc3 Nc6 14. Be3 O-O 15. Be2 Rd8 16. O-O Rxd1 17. Bxd1 Bf8 18. f4 a6 19. Na3 Bb4 20. Qc1 Qd7 21. fxe5 Nxe5 22. Bb3 Rd8 23. Nb1 Re8 24. Nc3 Bxc3 25. Qxc3 Qc6 26. Qd4 Nbc4 27. Rc1 b5 28. Bxc4 Nxc4 29. Bh6 Qb6 30. Qxb6 cxb6 31. b3 Ne5 32. h3 f6 33. Be3 Re6 34. Rc7 Nd3 35. Bh6 Nc5 36. Rg7+ Kf8 37. Rxg6+ Ke8 38. Rg7 Re7 39. Rg8+ Kd7 $11 40. Ra8 Kc6 41. b4 Kb7 42. Rf8 Nxe4 43. Bf4 a5 44. a3 Kc6 45. h4 Kd5 46. h5 axb4 47. axb4 Kc4 48. h6 Kxb4 49. Rg8 Kc4 50. Rg7 Re8 51. Rxh7 b4 52. Rc7+ Kb3 53. h7 Rh8 54. Be3 b5 55. Re7 Ng5 56. Bxg5 fxg5 57. Kf2 {... 63 moves} 0-1

[Event "XVII Orsha-2019 Open"]
[Site "Orsha"]
[Date "2019.01.23"]
[Round "8.14"]
[White "Stashis, Anna"]
[Black "Navumenka, Mikhei"]
[Result "0-1"]
[ECO "C42"]
[WhiteElo "1931"]
[BlackElo "2104"]
[PlyCount "74"]
[EventDate "2019.01.18"]
[EventType "swiss"]
[EventCountry "BLR"]
[TimeControl "5400+30"]

1. e4 e6 2. d4 d5 3. exd5 exd5 4. c4 Nf6 5. Nc3 dxc4 6. Bxc4 Be7 7. Nf3 O-O 8. O-O Bg4 9. h3 Bh5 10. g4 Bg6 11. Ne5 Nfd7 12. f4 Nxe5 13. dxe5 h5 14. Qxd8 Bxd8 15. f5 Bh7 16. g5 Kh8 17. Bd2 Nc6 18. Rae1 Nd4 19. Bd3 Be7 20. Nd5 Bc5 21. Be3 c6 22. Nc3 Rad8 23. Kg2 Rfe8 24. Bg1 Bb6 25. Rf4 c5 26. g6 fxg6 27. fxg6 Ne6 28. Rh4 Rxd3 29. gxh7 g5 30. Rhe4 Nf4+ 31. Rxf4 gxf4 32. e6 f3+ 33. Kf1 Kxh7 34. Ne4 Kg6 35. Nxc5 Rd5 36. Nxb7 Bxg1 37. Kxg1 Re7 0-1

[Event "XVII Orsha-2019 Open"]
[Site "Orsha"]
[Date "2019.01.23"]
[Round "8.15"]
[White "Gabdrakipov, Ilshat"]
[Black "Spizharny, Mikhail"]
[Result "0-1"]
[ECO "B41"]
[WhiteElo "2098"]
[BlackElo "1923"]
[PlyCount "144"]
[EventDate "2019.01.18"]
[EventType "swiss"]
[EventCountry "BLR"]
[TimeControl "5400+30"]

1. e4 c5 2. Nf3 e6 3. d4 cxd4 4. Nxd4 a6 5. c4 Nf6 6. Nc3 Bb4 7. Bd3 Nc6 8. Nxc6 dxc6 9. Qc2 e5 10. O-O O-O 11. Ne2 Be6 12. a3 Be7 13. b4 a5 14. Bb2 axb4 15. axb4 Bxb4 16. Rxa8 Qxa8 17. Bxe5 Be7 18. Bd4 Nd7 19. Ra1 Qb8 20. Qb2 Nc5 21. Bb1 Bxc4 22. Ng3 Ne6 23. Nf5 Nxd4 24. Qxd4 Bf6 25. Nh6+ gxh6 26. Qxf6 Qd8 27. Qf3 Qd4 28. Ra3 Qb2 29. Qg3+ Kh8 30. Qc3+ Qxc3 31. Rxc3 Rd8 32. f4 b5 33. Kf2 Rd4 34. Ke3 c5 35. Ra3 Rd1 36. Bc2 Rg1 37. Kf3 Rc1 38. Rc3 Bd3 39. Rxd3 Rxc2 40. f5 Kg7 41. e5 b4 42. Ke4 Rxg2 43. Kd5 Rc2 44. Kd6 c4 45. Rd4 h5 46. e6 b3 47. e7 Re2 48. Rxc4 Kf6 49. Rb4 Rd2+ 50. Kc6 Kxe7 51. Rxb3 Rxh2 52. Kd5 Kf6 53. Rb7 Re2 54. Kd4 h4 55. Kd3 Re5 56. Rb6+ Kg5 57. f6 Rf5 58. Ke3 Rxf6 59. Rb1 h3 60. Rh1 Kh4 61. Ke2 Ra6 62. Kf3 Ra2 63. Kf4 h2 64. Kf3 Kh3 65. Rb1 h5 66. Re1 h4 67. Rb1 Rg2 68. Kf4 Rf2+ 69. Ke3 Kg2 70. Ra1 Rb2 71. Ra4 h1=Q 72. Rg4+ Kh3 0-1

[Event "XVII Orsha-2019 Open"]
[Site "Orsha"]
[Date "2019.01.23"]
[Round "8.17"]
[White "Karas, Andrei"]
[Black "Kirilin, Dmitrij"]
[Result "0-1"]
[ECO "A26"]
[WhiteElo "1422"]
[BlackElo "2074"]
[PlyCount "108"]
[EventDate "2019.01.18"]
[EventType "swiss"]
[EventCountry "BLR"]
[TimeControl "5400+30"]

1. c4 e5 2. g3 Nc6 3. Bg2 g6 4. Nc3 Bg7 5. e4 Nge7 6. Nge2 d6 7. O-O O-O 8. d3 f5 9. Bg5 h6 10. Be3 Be6 11. Qd2 Kh7 12. b3 Qd7 13. Rad1 Nd4 14. Bxd4 exd4 15. Nd5 c6 16. Nxe7 Qxe7 17. Nf4 fxe4 18. Bxe4 Bf5 19. Rde1 Qd7 20. Bxf5 Rxf5 21. Re2 Re5 22. Rfe1 Rae8 23. Rxe5 dxe5 24. Qe2 Ra8 25. Ng2 Re8 26. Qe4 Qf5 27. Nh4 Qxe4 28. Rxe4 Rf8 29. Kg2 Bf6 30. Nf3 Re8 31. Nxd4 Rd8 32. Nf3 Rxd3 33. Nxe5 Rd2 34. Ng4 Bd4 35. Kf3 h5 36. Ne3 Bc5 37. Re5 Bb4 38. c5 Rxa2 39. Re7+ Kh6 40. Rxb7 Bxc5 41. Rc7 Ra6 42. Nc4 Bd4 43. h4 c5 44. Ne3 Rb6 45. Rxa7 c4 46. g4 Rf6+ 47. Kg3 Bxa7 48. g5+ Kh7 49. gxf6 Bxe3 50. bxc4 Bd4 51. c5 Bxc5 52. f4 Kg8 53. f5 Bd6+ 54. Kf3 gxf5 0-1

[Event "XVII Orsha-2019 Open"]
[Site "Orsha"]
[Date "2019.01.23"]
[Round "8.18"]
[White "Prutskov, Aleksei"]
[Black "Bury, Gleb M"]
[Result "1-0"]
[ECO "D87"]
[WhiteElo "1824"]
[BlackElo "1961"]
[PlyCount "61"]
[EventDate "2019.01.18"]
[EventType "swiss"]
[EventCountry "BLR"]
[TimeControl "5400+30"]

1. d4 Nf6 2. c4 g6 3. Nc3 d5 4. cxd5 Nxd5 5. e4 Nxc3 6. bxc3 Bg7 7. Bc4 c5 8. Ne2 Nc6 9. Be3 O-O 10. O-O b6 11. Qd2 Bb7 12. f4 cxd4 13. cxd4 Rc8 14. Rac1 Na5 15. Bd3 Qd6 16. f5 Qa3 17. e5 Rxc1 18. Rxc1 Rc8 19. Rxc8+ Bxc8 20. fxg6 hxg6 21. Qc3 Qxc3 22. Nxc3 e6 23. Nb5 Ba6 24. a4 Nc6 25. Be4 Bxb5 26. axb5 Nb4 27. Bg5 Kf8 28. h4 a5 29. Bd8 Ke8 30. Bxb6 a4 31. Ba5 1-0

[Event "XVII Orsha-2019 Open"]
[Site "Orsha"]
[Date "2019.01.23"]
[Round "8.19"]
[White "Budnikov, Sergei"]
[Black "Tsesler, Yakau"]
[Result "1-0"]
[ECO "D00"]
[WhiteElo "2152"]
[BlackElo "1895"]
[PlyCount "113"]
[EventDate "2019.01.18"]
[EventType "swiss"]
[EventCountry "BLR"]
[TimeControl "5400+30"]

1. d4 d5 2. Bf4 Nf6 3. e3 e6 4. Nd2 Bd6 5. Bg3 Nbd7 6. Ngf3 b6 7. Ne5 Bb7 8. Bd3 Ne4 9. Qg4 Qg5 10. Nxe4 Qxg4 11. Nxd6+ cxd6 12. Nxg4 h5 13. Bxd6 hxg4 14. Ke2 f5 15. f3 gxf3+ 16. gxf3 Kf7 17. b3 g5 18. Rhg1 Rag8 19. Rg2 Rh5 20. Rag1 a6 21. h4 Rxh4 22. Rxg5 Rxg5 23. Rxg5 Rh3 24. a4 Rh6 25. Rg2 Rh3 26. Rh2 Rxh2+ 27. Bxh2 Ke7 28. Bc7 Ke8 29. Kf2 Ke7 30. Kg3 Kf6 31. Kf4 Kg6 32. Bd8 Kf7 33. c4 Ke8 34. Bc7 Ke7 35. b4 dxc4 36. Bxc4 Bc6 37. b5 axb5 38. Bxb5 Bxb5 39. axb5 Nf6 40. e4 fxe4 41. fxe4 Nd7 42. e5 Kf7 43. Ke4 Ke7 44. Bd6+ Ke8 45. d5 exd5+ 46. Kxd5 Kd8 47. Kc6 Kc8 48. e6 Nf6 49. e7 Ne8 50. Be5 Nc7 51. Bd4 Ne8 52. Bxb6 Nc7 53. Bd4 Ne8 54. b6 Nc7 55. b7+ Kb8 56. Ba7+ Kxa7 57. Kxc7 1-0